Cogmind - Beta 12 @@@ ROGUE MODE // 2023.03.11 @ 22:43:02 // Winter2019/RPGLIKE Player: Wayland Result: Destroyed by Y-45 Defender with Heavy Assault Rifle Performance ------------- Evolutions (1) 500 Regions Visited (3) 600 Robots Destroyed (27) 135 Value Destroyed (820) 820 Prototype IDs (0) 0 Alien Tech Used (0) 0 Bonus (43) 43 TOTAL SCORE: 2098 Bonus ------- High Alert Combat Kills 10 Follower Combat Kills 33 Cogmind --------- Core Integrity 0/850 Matter 300/300 Energy 300/315 System Corruption 1% Temperature Cool (21) Movement Rolling (80) Location -9/Storage Parts ------- > --- POWER (1) -------- Improved Ion Engine > --- PROPULSION (2) --- Wheel > --- UTILITY (3) ------ Signal Interpreter Seismic Detector > --- WEAPON (2) ------- Beam Rifle Beam Rifle > --- INVENTORY (3) ---- Light Nuclear Core Peak State ------------ > --- POWER ------------ Light Nuclear Core > --- PROPULSION ------- Wheel Wheel > --- UTILITY ---------- Signal Interpreter Medium Armor Plating > --- WEAPON ----------- Beam Rifle > --- INVENTORY -------- Wheel Beam Rifle Datajack [Rating: 10] Favorites ----------- Power Ion Engine Engine Ion Engine Power Core Light Nuclear Core Propulsion Wheel Leg Aluminum Leg Wheel Wheel Utility Signal Interpreter Device Seismic Detector Processor Signal Interpreter Protection Medium Armor Plating Weapon Beam Rifle Energy Gun Beam Rifle Ballistic Gun Light Assault Rifle Build | -11 -10 -9 -9 ------- Run | Jun Mat Mat Sto Slots Evolved 4 | 2 . . 2 Power . | . . . . Propulsion 1 | 1 . . . Utility 2 | 1 . . 1 Weapon 1 | . . . 1 Parts Attached 18 | 1 7 6 4 Power 2 | . . 1 1 Engine 1 | . . . 1 Core 1 | . . 1 . Reactor . | . . . . Propulsion 6 | 1 2 2 1 Treads . | . . . . Leg . | . . . . Wheel 6 | 1 2 2 1 Hover . | . . . . Flight . | . . . . Utility 5 | . 3 2 . Device 1 | . . 1 . Storage . | . . . . Processor 1 | . 1 . . Hackware . | . . . . Protection 3 | . 2 1 . Artifact . | . . . . Weapon 5 | . 2 1 2 Energy Gun 5 | . 2 1 2 Energy Cannon . | . . . . Ballistic Gun . | . . . . Ballistic Cannon . | . . . . Launcher . | . . . . Special Weapon . | . . . . Impact Weapon . | . . . . Slashing Weapon . | . . . . Piercing Weapon . | . . . . Special Melee Weapon . | . . . . Unidentified Prototypes . | . . . . Parts Lost 3 | . . 3 . Power . | . . . . Propulsion 2 | . . 2 . Utility 1 | . . 1 . Weapon . | . . . . Highest Loss Streak 2 | . . 2 . To Critical Strikes 1 | . . 1 . Average Slot Usage (%) 76 | . 86 83 51 Engine 8 | . 16 7 2 Core 6 | . . 8 9 Wheel 20 | . 33 22 2 Device 4 | . . 2 12 Processor 14 | . 14 16 12 Protection 5 | . 5 7 . Energy Gun 12 | . 8 16 11 Ballistic Gun 2 | . 7 . . Naked Turns . | . . . . Heaviest Build 15 | 6 10 15 14 Greatest Support 20 | 10 20 20 15 Greatest Overweight (x) 2 | . . 2 2 Average Overweight (x) . | . . . . Largest Inventory Capacity 3 | 3 3 3 3 Average Capacity 2 | 1 3 3 3 Most Carried 3 | 3 3 3 3 Average Carried 2 | 1 2 2 2 Final Capacity 3 | 3 3 3 3 Final Carried 3 | 3 3 3 1 Class Distribution -------------------- 76% | Mutant 23% | Hacker-Mutant Dominant Class ---------------- Mutant | -10/Materials Mutant | -9/Materials Hacker-Mutant | -9/Storage Resources | -11 -10 -9 -9 ----------- Run | Jun Mat Mat Sto Matter Collected 396 | 200 56 100 40 Remotely . | . . . . Salvage Created 777 | . 138 312 327 Parts 54 | . 9 27 18 Haulers Intercepted . | . . . . Recyclers Shooed 1 | . 1 . . Parts Field Recycled . | . . . . Retrieved Matter . | . . . . Parts Self-Destructed . | . . . . Prevented . | . . . . Kills | -11 -10 -9 -9 ------- Run | Jun Mat Mat Sto Combat Hostiles Destroyed 25 | . 5 14 6 Guns 23 | . 4 13 6 AOE 1 | . 1 . . Classes Destroyed 6 | . 1 4 1 Worker 1 | . . 1 . Mechanic 1 | . . . 1 Swarmer 6 | . . 6 . Grunt 14 | . 5 5 4 Duelist 3 | . . 1 2 Sentry 2 | . . 2 . Best Kill Streak 5 | . 2 5 3 Combat Bots Only 5 | . 2 5 2 Max Kills in Single Turn 2 | . 1 1 2 Gunslinging . | . . . . Exploded 1 | . 1 . . Melee . | . . . . Uniques/NPCs Destroyed . | . . . . Combat | -11 -10 -9 -9 -------- Run | Jun Mat Mat Sto Damage Taken 2110 | . 469 1072 569 Core 1699 | . 373 821 505 Absorbed by Shields . | . . . . Redirected to Core 951 | . 274 462 215 Redirected to Shielding 9 | . 9 . . Core Remaining (%) 90 | 100 81 . . Volleys Fired 108 | . 32 59 17 Largest 2 | . 1 1 2 Hottest 112 | . 40 56 112 Shots Fired 124 | . 32 59 33 Gun 124 | . 32 59 33 Cannon . | . . . . Launcher . | . . . . Special . | . . . . Kinetic 16 | . 16 . . Thermal 92 | . . 59 33 Explosive . | . . . . Electromagnetic 16 | . 16 . . Robot Hit Streak 11 | . 9 11 5 Robot Miss Streak 3 | . 2 2 3 Penetration Max . | . . . . Secondary Targets . | . . . . Shots Hit Robots 94 | . 25 45 24 Core Hits 45 | . 12 23 10 Critical Kills . | . . . . Critical Parts Destroyed . | . . . . Critical Strikes 9 | . . 7 2 Burn 9 | . . 7 2 Melee Attacks . | . . . . Impact . | . . . . Slashing . | . . . . Piercing . | . . . . Sneak Attacks . | . . . . Combat Hostiles . | . . . . Follow-up Attacks . | . . . . Damage Inflicted 1400 | . 342 667 391 Guns 1323 | . 265 667 391 Cannons . | . . . . Explosions 77 | . 77 . . Melee . | . . . . Ramming . | . . . . Kinetic 112 | . 112 . . Thermal 1135 | . 77 667 391 Explosive . | . . . . Electromagnetic 153 | . 153 . . Impact . | . . . . Slashing . | . . . . Piercing . | . . . . Highest Corruption 1 | . . . 1 Average Corruption 1 | . . . 1 Corruption Purged . | . . . . Corruption Blocked . | . . . . Effects 1 | . . . 1 Parts Fused 1 | . . . 1 Overload Shots . | . . . . Overflow Damage . | . . . . Projectiles . | . . . . Explosions . | . . . . Melee . | . . . . Knockbacks . | . . . . Impact . | . . . . Kinetic . | . . . . Secondary . | . . . . Self-Inflicted Damage 77 | . 77 . . Shots 2 | . 2 . . Rammed . | . . . . Targets Rammed . | . . . . Kicked . | . . . . Crushed . | . . . . Highest Temperature 615 | . 42 227 615 Average Temperature 124 | . 18 65 294 Received Heat Transfer 663 | . 174 285 204 Effects 12 | . . . 12 Shutdowns 1 | . . . 1 Interference 4 | . . . 4 Short Circuit 1 | . . . 1 Damage (minor) 2 | . . . 2 Damage (major) 3 | . . . 3 Damage (core) 1 | . . . 1 Siege Activations . | . . . . Robots Corrupted . | . . . . Combat Hostiles . | . . . . Parts Fried . | . . . . Impact Corruptions . | . . . . Robots Melted 1 | . . 1 . Combat Hostiles 1 | . . 1 . Parts Melted 10 | . . 9 1 Heat Transferred 3467 | . 100 2220 1147 Parts Sabotaged . | . . . . Parts Stolen . | . . . . Parts Stripped . | . . . . Power Chain Reactions 2 | . 2 . . Missiles Intercepted . | . . . . Alert | -11 -10 -9 -9 ------- Run | Jun Mat Mat Sto Peak Influence 430 | . 191 430 271 Initial 96 | . . 86 96 Average 165 | . 90 235 148 Maximum Alert Level 2 | . . 2 1 Low Security (%) 67 | 100 100 39 73 Level 1 24 | . . 41 26 Level 2 8 | . . 18 . Level 3 . | . . . . Level 4 . | . . . . Level 5 . | . . . . High Security . | . . . . Max Security . | . . . . Squads Dispatched 3 | . . 1 2 Investigation . | . . . . Extermination . | . . . . Reinforcement 1 | . . 1 . Assault 2 | . . . 2 Garrison . | . . . . Intercept . | . . . . Searches Triggered . | . . . . Construction Impeded . | . . . . Haulers Reinforced . | . . . . Active Scanning Responses . | . . . . Cargo Convoy Interrupts . | . . . . Stealth | -11 -10 -9 -9 --------- Run | Jun Mat Mat Sto Distress Signals 2 | . . 1 1 Communications Jammed . | . . . . Distress Signals . | . . . . Times Spotted 50 | . 15 23 12 Peak Tracking Total 8 | . 6 8 8 Tactical Retreats 6 | . 3 2 1 Traps | -11 -10 -9 -9 ------- Run | Jun Mat Mat Sto Traps Triggered 2 | . 1 . 1 Indirectly . | . . . . Trap Hack Attempts . | . . . . Triggered . | . . . . Disarmed . | . . . . Reprogrammed . | . . . . Reused . | . . . . Traps Extracted . | . . . . Installed . | . . . . Triggered . | . . . . Machines | -11 -10 -9 -9 ---------- Run | Jun Mat Mat Sto Machines Disabled . | . . . . Max in Single Turn . | . . . . Machines Repaired . | . . . . Machines Sabotaged . | . . . . Overloaded Fab Kills . | . . . . Hacking | -11 -10 -9 -9 --------- Run | Jun Mat Mat Sto Machines Accessed 5 | . 2 3 . Terminals 4 | . 2 2 . Fabricators . | . . . . Repair Stations 1 | . . 1 . Recycling Units . | . . . . Scanalyzers . | . . . . Garrison Access . | . . . . Total Hacks 17 | . 7 10 . Successful 5 | . 1 4 . Failed 12 | . 6 6 . Catastrophic 2 | . 2 . . Database Lockouts . | . . . . Manual 10 | . 5 5 . Terminals 14 | . 7 7 . Fabricators . | . . . . Repair Stations 3 | . . 3 . Recycling Units . | . . . . Scanalyzers . | . . . . Garrison Access . | . . . . Terminal Hacks 4 | . 1 3 . Record 1 | . . 1 . Branch Access Points 1 | . . 1 . Recycling Unit Index 1 | . 1 . . Unreport Threat 1 | . . 1 . Fabricator Hacks . | . . . . Repair Station Hacks 1 | . . 1 . Scan Component 1 | . . 1 . Recycling Unit Hacks . | . . . . Scanalyzer . | . . . . Garrison Access Hacks . | . . . . Unauthorized Hacks . | . . . . Terminals . | . . . . Fabricators . | . . . . Repair Stations . | . . . . Recycling Units . | . . . . Scanalyzers . | . . . . Garrison Access . | . . . . Data Cores Recovered . | . . . . Used . | . . . . Hacking Detections 4 | . 2 2 . Full Trace Events . | . . . . Feedback Events . | . . . . Feedback Blocked . | . . . . Robot Schematics Acquired . | . . . . Robots Built . | . . . . Authchips . | . . . . Time . | . . . . Total Robot Build Rating . | . . . . Part Schematics Acquired . | . . . . Parts Built . | . . . . Authchips . | . . . . Time . | . . . . Total Part Build Rating . | . . . . Parts Repaired . | . . . . Time . | . . . . Parts Recycled . | . . . . Recycled Matter . | . . . . Retrieved Matter . | . . . . Retrieved Components . | . . . . Parts Scanalyzed . | . . . . Part Schematics Acquired . | . . . . Parts Damaged . | . . . . Bothacking | -11 -10 -9 -9 ------------ Run | Jun Mat Mat Sto Used RIF Installer . | . . . . Robots Hacked . | . . . . Non-combat . | . . . . Combat . | . . . . Robot Hacks Applied . | . . . . Relay Couplers Released . | . . . . Fabnet Peak Effective % . | . . . . Robots Rewired . | . . . . Allies Hacked . | . . . . Hacks Repelled . | . . . . Allies | -11 -10 -9 -9 -------- Run | Jun Mat Mat Sto Total Allies 2 | . . . 2 Largest Group 2 | . . . 2 Highest-Rated Group 62 | . . . 62 Highest-Rated Ally 31 | . . . 31 Total Orders . | . . . . Ally Attacks 10 | . . . 10 Total Damage 145 | . . . 145 Kills 1 | . . . 1 Allies Corrupted . | . . . . Allies Melted . | . . . . Intel | -11 -10 -9 -9 ------- Run | Jun Mat Mat Sto Robot Analysis Total . | . . . . Derelict Logs Recovered . | . . . . Drone Launches . | . . . . Drone Recoveries . | . . . . Exploration | -11 -10 -9 -9 ------------- Run | Jun Mat Mat Sto Turns Passed 1006 | 13 316 432 245 Spaces Moved 668 | 9 222 257 180 Core 199 | . . 69 130 Treads . | . . . . Legs 2 | 2 . . . Wheels 467 | 7 222 188 50 Hover . | . . . . Flight . | . . . . Fastest Speed 50 | 80 80 80 50 Average Speed 83 | 88 80 98 65 Slowest Speed 150 | 120 80 150 150 Overloaded Moves . | . . . . Propulsion Burnouts . | . . . . Robots Hopped . | . . . . Cave-ins Triggered . | . . . . Exploration Rate (%) 20 | 1 37 26 16 Regions Visited 3 Branch Regions 1 Pre-discovered Areas . | . . . . Known Exits Taken 2 | . 1 1 . Unknown Exits Taken 1 | 1 . . . Scrap Searched . | . . . . Spaces Dug . | . . . . Terrain Destroyed 4 | . 4 . . Melee . | . . . . Projectile . | . . . . AOE 4 | . 4 . . Terrain Rammed . | . . . . Walls Destroyed . | . . . . Machines Disabled . | . . . . Actions | -11 -10 -9 -9 --------- Run | Jun Mat Mat Sto Total 998 | 13 329 379 277 Wait 139 | . 55 19 65 Move 665 | 8 221 256 180 Hop . | . . . . Pick Up 15 | 3 2 7 3 Fast Attach 7 | 1 5 1 . Attach 5 | . 1 . 4 Detach 1 | . . . 1 Swap 6 | . 1 5 . Drop 15 | 1 2 9 3 Fire 108 | . 32 59 17 Melee . | . . . . Ram . | . . . . Kick . | . . . . Crush . | . . . . Escape Stasis . | . . . . Rewire . | . . . . Trap . | . . . . Miscellaneous 37 | . 10 23 4 Route ------- -11/Junkyard -10/Materials (discovered 2 exits: *Mat / [*Min]) -9/Materials (discovered 3 exits: Min x2 / *Sto) -9/Storage History --------- Turn | Location | Event 1 | -11/Junkyard | Discovered new exit (range 1) 7 | -11/Junkyard | Upgraded with Propulsion slot (x1) 7 | -11/Junkyard | Upgraded with Utility slot (x1) 14 | -11/Junkyard | Entered Materials 276 | -10/Materials | Discovered new exit (range 17) 288 | -10/Materials | Identified exit to Materials 312 | -10/Materials | Discovered new exit (range 13) 324 | -10/Materials | Build established: Mutant 330 | -10/Materials | Entered another Materials area 332 | -9/Materials | Reached level 2 373 | -9/Materials | Identified exit to Mines 373 | -9/Materials | Identified exit to Storage 536 | -9/Materials | Reached level 3 630 | -9/Materials | Core integrity fell below 50% 762 | -9/Materials | Entered Storage 764 | -9/Storage | Reached level 4 777 | -9/Storage | Upgraded with Utility slot (x1) 777 | -9/Storage | Upgraded with Weapon slot (x1) 798 | -9/Storage | Met a pair of Derelict thieves 934 | -9/Storage | Core integrity fell below 20% 1007 | -9/Storage | Destroyed by Y-45 Defender with Heavy Assault Rifle Last Messages --------------- 00940_ Overheating: Short circuit. 00940_ G-47 Trooper suffers critical hit (Burn). 00942_ Overheating: System interference. 00942_ Beam Rifle temporarily disabled. 00943_ Overheating: Core damaged (-102). 00943_ G-47 Trooper destroyed. 00945_ Overheating: System interference. 00945_ Beam Rifle temporarily disabled. 00945_ Signal Interpreter temporarily disabled. 00945_ Seismic Detector temporarily disabled. 00948_ Overheating: Seismic Detector damaged (-13). 00948_ Overheating: Broken Lgt. Nuclear Core damaged (-12). 00948_ Overheating: Signal Interpreter damaged (-7). 00949_ Acquired Wheel. 00954_ Discarded Broken Lgt. Nuclear Core. 00957_ Acquired Lgt. Nuclear Core. 00975_ G-34 Mercenary destroyed. 00987_ Acquired 20 matter. 01001_ W-16 Scout sends out distress signal. 01005_ K-01 Serf collects debris. Map ----- +----------------------------------------------------+ | ??????????????######### #??? | | ?????????????????????## ##?? | | ?????????????????????# #?? | | ?????????????????????# #?? | | ?????????????????????# #?? | | ?????????????????????# #?? | | ?????????????????????# #?? | | ????????????????####### ##?? | | ????????????????# # #??? | | ????????????????# """ # #??? | | ????????????????# R" # #??? | | ????????????????# """ # #??? | | ????????????????# + #??? | | ????????????????# # ##?? | | ????????????????# #%% ##?? | | ????????????????# # ##?? | | ????????????????# """ # ##?? | | ????????????????# """!# ##?? | | ????????????????# """!#k% ##?? | | ????????????????# !%%=# ##?? | | ????????????????## ####=%*#??? | | ?????????????????###??#[%*#??? | | ??????????????????????#[%%#??? | | ??????????????????????# #??? | | ??????????????????????# #??? | | ??????????????????????# @#??? | | ??????????????????????# #??? | | ??????????????????????#% #??? | | ??????????????????????#% #??? | | ??????????????????????# #??? | | ??????????????????????# #??? | | ??????????????????????# #??? | | ????????????????? / #??? | | ??????????? ! / # #??? | | ?????????? = #a #??? | | ?????????? ?+ #??? | | ???????????##########?# #??? | | ??????????????????????##Y##??? | | ??????????????????????? r????? | | ??????????????????????? ????? | | ??????????????????????? ????? | | ??????????????????????? ]????? | | ?????????????????????????????? | | ?????????????????????????????? | | ?????????????????????????????? | | ?????????????????????????????? | | ?????????????????????????????? | | ?????????????????????????????? | | ?????????????????????????????? | | | +----------------------------------------------------+ Best States ------------- Heat Dissipation 31 Energy Generation 14 Energy Capacity 315 Matter Stores 300 Matter Capacity 300 Sight Range 17 Terrain Scan Density 10 Armor Coverage 225 Resistance: KI 15 Resistance: TH 10 Power Shielding 33 Evasion (%) 50 Offensive Hacking 10 Defensive Hacking 10 Item Schematics ----------------- None Robot Schematics ------------------ None Fabricated ------------ Nothing Alien Tech Used ----------------- None Achievements -------------- None Challenges ------------ None RPGLIKE | -11 -10 -9 -9 --------- Run | Jun Mat Mat Sto Levels Raised 3 | . . 2 1 XP Earned 8676 | 3000 550 3285 1841 XP Spent 7325 | 2960 . 1500 2865 Upgrades 25 | 11 . 7 7 Propulsion Slot 1 | 1 . . . Utility Slot 2 | 1 . . 1 Weapon Slot 1 | . . . 1 Core Integrity 5 | 4 . . 1 Heat Dissipation 1 | . . 1 . Energy Storage 1 | . . 1 . Mass Support 1 | . . . 1 Inventory Capacity 3 | 3 . . . Sight Range 1 | 1 . . . Hack Attack % 2 | 1 . 1 . Hack Defense % 2 | . . 1 1 KI Resistance % 3 | . . 2 1 TH Resistance % 2 | . . 1 1 Protomatter Created 373 | . 108 214 51 Integrity Restored 846 | . 225 528 93 Core 846 | . 225 528 93 Protomatter Decayed 71 | . . 20 51 Game ------ Seed PortablePortableAmplifier Manual? 0 Play Time 00:19:17 Cumulative 124.0 hours Start 2023.03.11 @ 22:27:08 End 2023.03.11 @ 22:43:02 Sessions 1 Manual Loads 0 Difficulty Rogue Special Mode Winter2019/RPGLIKE Game No. 190 Rogue 190 Adventurer 0 Explorer 0 Win Type - Total 2 Types 1/0/1/0/0/0/0/0/0 Lore% 50 Gallery% 59 Achievement% 50 Wizard Run 0 Options --------- ASCII 0 Keyboard 0 Movement Mouse Keybinds 0 Fullscreen 2 Font 24/Proggy Map View 113x50 Tactical HUD 1 Map Filters NONE Filters NONE Steam 1 RUN: bf6662fa-16a1-44a0-902e-2efc41d335ca